Cogmind - Beta 11.1 @@@ ROGUE MODE // 2022.08.30 @ 23:53:30 Player: eldritch Result: Self-destructed Performance ------------- Evolutions (2) 1000 Regions Visited (4) 800 Robots Destroyed (19) 95 Value Destroyed (418) 418 Prototype IDs (0) 0 Alien Tech Used (0) 0 Bonus (0) 0 TOTAL SCORE: 2313 Bonus ------- None Cogmind --------- Core Integrity 493/550 Matter 209/300 Energy 14/100 System Corruption 0% Temperature Cool (18) Movement Walking (190) Ox1 Location -8/Materials Parts ------- > --- POWER (1) -------- (None) > --- PROPULSION (3) --- Aluminum Leg Aluminum Leg Compact Wheel > --- UTILITY (5) ------ Large Storage Unit Visual Processing Unit Sensor Array Improved Signal Interpreter Microactuators > --- WEAPON (2) ------- Gatling Laser Chainsword > --- INVENTORY (15) --- Improved Heat Sink Cooling System Disposable Heat Sink Weight Redist. System Improved Sensor Array Particle Charger Medium Armor Plating Trap Extractor (0/4) Gatling Laser Datajack Chainsword Peak State ------------ > --- POWER ------------ (None) > --- PROPULSION ------- Aluminum Leg Aluminum Leg Compact Wheel > --- UTILITY ---------- Large Storage Unit Visual Processing Unit Sensor Array Improved Signal Interpreter Microactuators > --- WEAPON ----------- Gatling Laser Chainsword > --- INVENTORY -------- Improved Heat Sink Cooling System Disposable Heat Sink Weight Redist. System Improved Sensor Array Particle Charger Medium Armor Plating Trap Extractor Gatling Laser Datajack Chainsword [Rating: 24] Favorites ----------- Power Light Nuclear Core Engine Ion Engine Power Core Light Nuclear Core Propulsion Compact Wheel Leg Aluminum Leg Wheel Compact Wheel Utility Large Storage Unit Device Sensor Array Storage Large Storage Unit Processor Signal Interpreter Weapon Light Assault Rifle Energy Gun Heavy EM Pulse Gun Ballistic Gun Light Assault Rifle Ballistic Cannon Improved Light Cannon Impact Weapon Flail Slashing Weapon Mining Claw Special Melee Weapon Datajack Build | -11 -10 -10 -9 -8 ------- Run | Scr Mat Min Mat Mat Slots Evolved 4 | . . . 2 2 Power . | . . . . . Propulsion 1 | . . . . 1 Utility 3 | . . . 2 1 Weapon . | . . . . . Parts Attached 35 | 6 14 1 7 7 Power 4 | 1 2 . 1 . Engine 3 | 1 1 . 1 . Core 1 | . 1 . . . Reactor . | . . . . . Propulsion 7 | 2 3 . . 2 Treads . | . . . . . Leg 4 | 2 . . . 2 Wheel 3 | . 3 . . . Hover . | . . . . . Flight . | . . . . . Utility 9 | 1 4 . 2 2 Device 2 | . . . 1 1 Storage 3 | 1 2 . . . Processor 4 | . 2 . 1 1 Hackware . | . . . . . Protection . | . . . . . Artifact . | . . . . . Weapon 15 | 2 5 1 4 3 Energy Gun 3 | . . . 1 2 Energy Cannon . | . . . . . Ballistic Gun 5 | 2 3 . . . Ballistic Cannon 2 | . 1 1 . . Launcher . | . . . . . Special Weapon . | . . . . . Impact Weapon 1 | . . . 1 . Slashing Weapon 3 | . . . 2 1 Piercing Weapon . | . . . . . Special Melee Weapon 1 | . 1 . . . Unidentified Prototypes . | . . . . . Parts Lost 7 | . 2 . 1 4 Power 3 | . 1 . 1 1 Propulsion 2 | . 1 . . 1 Utility . | . . . . . Weapon 2 | . . . . 2 Highest Loss Streak 4 | . 2 . 1 4 To Critical Strikes . | . . . . . Average Slot Usage (%) 98 | . 99 100 100 86 Engine 6 | . 9 . 3 8 Core 6 | . 4 14 8 . Leg 5 | . 11 . . 1 Wheel 19 | . 16 28 22 17 Device 4 | . . . 11 15 Storage 12 | . 14 14 11 9 Processor 16 | . 13 14 22 18 Ballistic Gun 14 | . 25 14 1 . Ballistic Cannon 6 | . . 14 11 7 Slashing Weapon 2 | . . . 5 9 Naked Turns . | . . . . . Heaviest Build 35 | 10 30 30 33 35 Greatest Support 32 | 20 32 32 32 32 Greatest Overweight (x) 1 | . 1 . 1 1 Average Overweight (x) . | . . . . . Largest Inventory Capacity 15 | 8 15 15 15 15 Average Capacity 13 | 6 12 15 15 15 Most Carried 15 | 3 14 15 15 15 Average Carried 11 | 1 9 14 14 14 Final Capacity 15 | 8 15 15 15 15 Final Carried 15 | 2 14 15 15 11 Class Distribution -------------------- 44% | Mutant 27% | Scavenger-Assassin 18% | Scavenger-Mutant 8% | Scavenger-Skirmisher Dominant Class ---------------- Mutant | -10/Materials Scavenger-Mutant | -10/Mines Scavenger-Assassin | -9/Materials Scavenger-Assassin | -8/Materials Resources | -11 -10 -10 -9 -8 ----------- Run | Scr Mat Min Mat Mat Matter Collected 675 | 231 251 90 71 32 Remotely . | . . . . . Salvage Created 618 | . 357 69 160 32 Parts 43 | . 28 4 8 3 Haulers Intercepted 3 | . 2 . 1 . Recyclers Shooed 1 | . 1 . . . Parts Field Recycled . | . . . . . Retrieved Matter . | . . . . . Parts Self-Destructed . | . . . . . Prevented . | . . . . . Kills | -11 -10 -10 -9 -8 ------- Run | Scr Mat Min Mat Mat Combat Hostiles Destroyed 12 | . 6 2 4 . Melee 1 | . . . 1 . Guns 8 | . 6 . 2 . Cannons 3 | . . 2 1 . Classes Destroyed 7 | . 6 . 1 . Worker 1 | . 1 . . . Hauler 3 | . 2 . 1 . Recycler 1 | . 1 . . . Watcher 2 | . 1 . . 1 Swarmer 3 | . 3 . . . Grunt 8 | . 3 2 3 . Brawler 1 | . . . 1 . Best Kill Streak 3 | . 3 2 3 1 Combat Bots Only 3 | . 3 2 3 . Max Kills in Single Turn 1 | . 1 1 1 1 Gunslinging . | . . . . . Exploded . | . . . . . Melee 1 | . . . 1 . Uniques/NPCs Destroyed . | . . . . . Combat | -11 -10 -10 -9 -8 -------- Run | Scr Mat Min Mat Mat Damage Taken 1015 | . 339 154 193 329 Core 215 | . 87 36 35 57 Absorbed by Shields . | . . . . . Core Remaining (%) 80 | 100 . 50 91 . Volleys Fired 60 | . 30 11 12 7 Largest 2 | . 2 2 2 1 Hottest 84 | . 40 59 84 80 Shots Fired 108 | . 55 22 24 7 Gun 76 | . 50 11 12 3 Cannon 32 | . 5 11 12 4 Launcher . | . . . . . Special . | . . . . . Kinetic 93 | . 55 22 12 4 Thermal 2 | . . . . 2 Explosive . | . . . . . Electromagnetic 13 | . . . 12 1 Robot Hit Streak 14 | . 14 4 5 8 Robot Miss Streak 5 | . 5 5 2 2 Penetration Max . | . . . . . Secondary Targets 1 | . 1 . . . Max Gunslinging Chain 1 | . 1 . . . Shots Hit Robots 70 | . 36 11 16 7 Core Hits 30 | . 18 5 5 2 Critical Kills . | . . . . . Critical Parts Destroyed 1 | . . . 1 . Critical Strikes 1 | . . . 1 . Smash 1 | . . . 1 . Melee Attacks 15 | . 1 . 9 5 Impact 2 | . . . 2 . Slashing 12 | . . . 7 5 Piercing . | . . . . . Sneak Attacks 3 | . 1 . 1 1 Combat Hostiles . | . . . . . Follow-up Attacks . | . . . . . Damage Inflicted 1097 | . 368 186 344 199 Guns 557 | . 344 41 94 78 Cannons 402 | . 24 145 186 47 Explosions . | . . . . . Melee 138 | . . . 64 74 Ramming . | . . . . . Kinetic 787 | . 368 186 186 47 Thermal 64 | . . . . 64 Explosive . | . . . . . Electromagnetic 108 | . . . 94 14 Impact 64 | . . . 64 . Slashing 74 | . . . . 74 Piercing . | . . . . . Highest Corruption 2 | . . . 2 . Average Corruption 2 | . . . 2 . Corruption Purged . | . . . . . Corruption Blocked . | . . . . . Effects 2 | . . . 2 . Message Errors 1 | . . . 1 . Matter Fused 1 | . . . 1 . Overload Shots . | . . . . . Overflow Damage 50 | . . . 46 4 Projectiles . | . . . . . Explosions . | . . . . . Melee 50 | . . . 46 4 Knockbacks 3 | . . 1 1 1 Impact . | . . . . . Kinetic 3 | . . 1 1 1 Secondary . | . . . . . Self-Inflicted Damage . | . . . . . Shots . | . . . . . Rammed . | . . . . . Targets Rammed . | . . . . . Kicked . | . . . . . Crushed . | . . . . . Highest Temperature 176 | . 19 176 87 27 Average Temperature 48 | . 6 106 41 13 Received Heat Transfer 396 | . 153 84 96 63 Siege Activations . | . . . . . Robots Corrupted . | . . . . . Combat Hostiles . | . . . . . Parts Fried 2 | . . . 2 . Impact Corruptions 1 | . . . 1 . Robots Melted . | . . . . . Combat Hostiles . | . . . . . Parts Melted . | . . . . . Heat Transferred 150 | . . . . 150 Parts Sabotaged . | . . . . . Parts Stolen . | . . . . . Parts Stripped . | . . . . . Power Chain Reactions . | . . . . . Missiles Intercepted . | . . . . . Alert | -11 -10 -10 -9 -8 ------- Run | Scr Mat Min Mat Mat Peak Influence 206 | . 173 117 206 32 Initial 67 | . . 67 45 9 Average 65 | . 58 113 80 14 Maximum Alert Level 1 | . . . 1 . Low Security (%) 99 | 100 100 100 96 100 Level 1 . | . . . 3 . Level 2 . | . . . . . Level 3 . | . . . . . Level 4 . | . . . . . Level 5 . | . . . . . High Security . | . . . . . Max Security . | . . . . . Squads Dispatched 3 | . 2 . 1 . Investigation 1 | . 1 . . . Extermination . | . . . . . Reinforcement 2 | . 1 . 1 . Assault . | . . . . . Garrison . | . . . . . Intercept . | . . . . . Searches Triggered . | . . . . . Construction Impeded . | . . . . . Haulers Reinforced . | . . . . . Active Scanning Responses . | . . . . . Cargo Convoy Interrupts . | . . . . . Stealth | -11 -10 -10 -9 -8 --------- Run | Scr Mat Min Mat Mat Distress Signals 4 | . 2 . 1 1 Communications Jammed . | . . . . . Distress Signals . | . . . . . Times Spotted 32 | . 16 2 8 6 Peak Tracking Total 6 | . 6 2 5 5 Tactical Retreats 1 | . 1 . . . Traps | -11 -10 -10 -9 -8 ------- Run | Scr Mat Min Mat Mat Traps Triggered 2 | . 1 . 1 . Indirectly . | . . . . . Trap Hack Attempts 16 | . 16 . . . Triggered . | . . . . . Disarmed 2 | . 2 . . . Reprogrammed . | . . . . . Reused . | . . . . . Traps Extracted . | . . . . . Installed . | . . . . . Triggered . | . . . . . Machines | -11 -10 -10 -9 -8 ---------- Run | Scr Mat Min Mat Mat Machines Disabled . | . . . . . Max in Single Turn . | . . . . . Machines Sabotaged . | . . . . . Garrisons Compromised . | . . . . . Overloaded Fab Kills . | . . . . . Hacking | -11 -10 -10 -9 -8 --------- Run | Scr Mat Min Mat Mat Machines Accessed 6 | . 3 . 3 . Terminals 5 | . 3 . 2 . Fabricators . | . . . . . Repair Stations . | . . . . . Recycling Units 1 | . . . 1 . Scanalyzers . | . . . . . Garrison Access . | . . . . . Total Hacks 25 | . 9 . 16 . Successful 13 | . 4 . 9 . Failed 12 | . 5 . 7 . Catastrophic 2 | . 2 . . . Database Lockouts . | . . . . . Manual 14 | . 6 . 8 . Terminals 18 | . 9 . 9 . Fabricators . | . . . . . Repair Stations . | . . . . . Recycling Units 7 | . . . 7 . Scanalyzers . | . . . . . Garrison Access . | . . . . . Terminal Hacks 4 | . 2 . 2 . Terminal Index 1 | . . . 1 . Transport Status 1 | . 1 . . . Hauler Manifests 2 | . 1 . 1 . Fabricator Hacks . | . . . . . Repair Station Hacks . | . . . . . Recycling Unit Hacks 3 | . . . 3 . Retrieve Matter 1 | . . . 1 . Retrieve Components 2 | . . . 2 . Scanalyzer . | . . . . . Garrison Access Hacks . | . . . . . Unauthorized Hacks 6 | . 2 . 4 . Terminals 6 | . 2 . 4 . Track 1 | . . . 1 . Botnet 3 | . 1 . 2 . Disrupt 2 | . 1 . 1 . Fabricators . | . . . . . Repair Stations . | . . . . . Recycling Units . | . . . . . Scanalyzers . | . . . . . Garrison Access . | . . . . . Data Cores Recovered . | . . . . . Used . | . . . . . Hacking Detections 6 | . 3 . 3 . Full Trace Events 1 | . 1 . . . Feedback Events . | . . . . . Feedback Blocked . | . . . . . Robot Schematics Acquired . | . . . . . Robots Built . | . . . . . Authchips . | . . . . . Time . | . . . . . Total Robot Build Rating . | . . . . . Part Schematics Acquired . | . . . . . Parts Built . | . . . . . Authchips . | . . . . . Time . | . . . . . Total Part Build Rating . | . . . . . Parts Repaired . | . . . . . Time . | . . . . . Parts Recycled . | . . . . . Recycled Matter . | . . . . . Retrieved Matter . | . . . . . Retrieved Components . | . . . . . Parts Scanalyzed . | . . . . . Part Schematics Acquired . | . . . . . Parts Damaged . | . . . . . Bothacking | -11 -10 -10 -9 -8 ------------ Run | Scr Mat Min Mat Mat Used RIF Installer . | . . . . . Robots Hacked 1 | . 1 . . . Non-combat 1 | . 1 . . . Combat . | . . . . . Robot Hacks Applied 1 | . 1 . . . parse_system 1 | . 1 . . . Relay Couplers Released . | . . . . . Fabnet Peak Effective % . | . . . . . Robots Rewired . | . . . . . Allies Hacked . | . . . . . Hacks Repelled . | . . . . . Allies | -11 -10 -10 -9 -8 -------- Run | Scr Mat Min Mat Mat Total Allies . | . . . . . Largest Group . | . . . . . Highest-Rated Group . | . . . . . Highest-Rated Ally . | . . . . . Total Orders . | . . . . . Ally Attacks . | . . . . . Total Damage . | . . . . . Kills . | . . . . . Allies Corrupted . | . . . . . Allies Melted . | . . . . . Intel | -11 -10 -10 -9 -8 ------- Run | Scr Mat Min Mat Mat Robot Analysis Total . | . . . . . Derelict Logs Recovered 1 | . . 1 . . Drone Launches . | . . . . . Drone Recoveries . | . . . . . Exploration | -11 -10 -10 -9 -8 ------------- Run | Scr Mat Min Mat Mat Turns Passed 1557 | 65 720 201 438 133 Spaces Moved 1121 | 51 522 167 304 77 Core 10 | 10 . . . . Treads . | . . . . . Legs 245 | 41 202 . . 2 Wheels 866 | . 320 167 304 75 Hover . | . . . . . Flight . | . . . . . Fastest Speed 50 | 50 100 100 100 100 Average Speed 105 | 106 107 100 101 113 Slowest Speed 190 | 120 190 100 115 190 Overloaded Moves . | . . . . . Propulsion Burnouts . | . . . . . Robots Hopped . | . . . . . Cave-ins Triggered . | . . . . . Exploration Rate (%) 29 | 4 79 24 32 7 Regions Visited 4 Branch Regions 1 Pre-discovered Areas . | . . . . . Known Exits Taken 3 | . 1 1 1 . Unknown Exits Taken 1 | 1 . . . . Scrap Searched . | . . . . . Spaces Dug 6 | . . . 5 1 Terrain Destroyed 7 | . 1 . 5 1 Melee 6 | . . . 5 1 Projectile 1 | . 1 . . . AOE . | . . . . . Terrain Rammed . | . . . . . Walls Destroyed . | . . . . . Machines Disabled . | . . . . . Actions | -11 -10 -10 -9 -8 --------- Run | Scr Mat Min Mat Mat Total 1368 | 59 625 181 394 109 Wait 79 | . 23 . 54 2 Move 1117 | 50 521 166 303 77 Hop . | . . . . . Pick Up 30 | 3 14 2 6 5 Fast Attach 9 | 5 3 . . 1 Attach 11 | 1 3 . 3 4 Detach . | . . . . . Swap 15 | . 8 1 4 2 Drop 16 | . 6 1 3 6 Fire 60 | . 30 11 12 7 Melee 15 | . 1 . 9 5 Ram . | . . . . . Kick . | . . . . . Crush . | . . . . . Escape Stasis . | . . . . . Rewire . | . . . . . Trap 16 | . 16 . . . Miscellaneous . | . . . . . Route ------- -11/Scrapyard -10/Materials (discovered 3 exits: *Mat x2 / *Min) -10/Mines (discovered 2 exits: *Mat / [*Exi]) -9/Materials -8/Materials History --------- Turn | Location | Event 8 | -11/Scrapyard | Discovered new exit (range 16) 66 | -11/Scrapyard | Entered Materials 307 | -10/Materials | Build established: Mutant 373 | -10/Materials | Discovered new exit (range 11) 698 | -10/Materials | Discovered new exit (range 5) 777 | -10/Materials | Discovered new exit (range 9) 785 | -10/Materials | Identified exit to Mines 786 | -10/Materials | Entered Mines 847 | -10/Mines | Identified exit to Materials 918 | -10/Mines | Deemed a non-threat by the Exiles lab entrance 918 | -10/Mines | Discovered new exit (range 5) 987 | -10/Mines | Entered Materials 987 | -9/Materials | Evolved 2 slots: Utility x2 1411 | -9/Materials | Discovered new exit (range 10) 1422 | -9/Materials | Identified exit to Materials 1425 | -9/Materials | Entered another Materials area 1425 | -8/Materials | Evolved 2 slots: Propulsion x1, Utility x1 1558 | -8/Materials | Self-destructed Last Messages --------------- 01455_ Dropped Flail. 01457_ Acquired Chainsword. 01458_ Dropped Lgt. Assault Rifle. 01460_ Acquired Microactuators. 01464_ Dropped Lgt. Assault Rifle. 01465_ Acquired Gatling Laser. 01481_ Acquired Particle Charger. 01503_ K-01 Serf collects debris. 01505_ W-25 Informer sends out distress signal. 01508_ K-01 Serf collects debris. 01509_ W-25 Informer destroyed. 01511_ K-01 Serf collects debris. 01512_ Discarded Signal Interpreter. 01514_ Acquired 32 matter. 01516_ Acquired Imp. Sensor Array. 01526_ L-31 Rogue knocked back. 01536_ Imp. Light Cannon destroyed. 01546_ Ion Engine destroyed. 01546_ Com. Wheel destroyed. 01548_ Hvy. EM Pulse Gun destroyed. Map ----- +----------------------------------------------------+ | ?????????????????????# #?????????????????? | | ?????????????????????# #?????????????????? | | ?????????????????????# #?????????????????? | | ?????????????????????# #?????????????????? | | ?????????????????????? +?????????????????? | | ???????????????????????# #?????????????????? | | ???????????????????????# = #?????????????????? | | ???????????????????????# #?????????????????? | | ???????????????????????# #?????????????????? | | ??????????#+############ #?????????????????? | | ?????? #?????????????????? | | ?????? #?????????????????? | | ?????? % #?????????????????? | | ????????## ############ ##?????????????????? | | ????????????????????????# #??????????????????? | | ????????????????????????# #???###????????????? | | ????????????????????????# #???# ????????????? | | ????????????????????????# #???# ????????????? | | ????????????????????????# #???# ????????????? | | ????????????????????????# #???# ????????????? | | ????????????????????????# #???# #????????????? | | ????????????????????#####g##### #????????????? | | ????????????????????# g # #????????????? | | ????????????????????# # #####????????? | | ????????????????????# lg # [[#????????? | | ????????????????????# @ + [ #????????? | | ??????????????w?????# ### !!#????????? | | ????????????????????+ #?#[![#????????? | | ??????????????????? # #?#/[/#????????? | | ?????????????????? # #?# //#????????? | | ????????????????# ########;########????????? | | ????????????????# #?????????????? | | ????????????????# #?????????????? | | ????????????????# #?????????????? | | ????????????????################?????????????? | | ?????????????????????????????????????????????? | | ?????????????????????????????????????????????? | | ?????????????????????????????????????????????? | | ?????????????????????????????????????????????? | | | | | | | | | | | | | | | | | | | | | | | +----------------------------------------------------+ Best States ------------- Heat Dissipation 31 Energy Generation 14 Energy Capacity 250 Matter Stores 300 Matter Capacity 300 Sight Range 18 Robot Scan Range 14 Terrain Scan Density 10 Melee Speed Boost 20 Evasion (%) 55 Targeting Accuracy 5 Item Schematics ----------------- None Robot Schematics ------------------ None Fabricated ------------ Nothing Alien Tech Used ----------------- None Achievements -------------- None Challenges ------------ None Game ------ Seed HypervelocitySmartbombArray Manual? 0 Play Time 00:15:32 Cumulative 264.7 hours Start 2022.08.30 @ 23:39:40 End 2022.08.30 @ 23:53:30 Sessions 1 Manual Loads 0 Difficulty Rogue Special Mode None Game No. 602 Rogue 602 Adventurer 0 Explorer 0 Win Type - Total 5 Types 4/0/0/1/0/0/0/0/0 Lore% 61 Gallery% 64 Achievement% 57 Wizard Run 0 Options --------- ASCII 0 Keyboard 0 Movement Numpad Keybinds 0 Fullscreen 1 Font 16/SmallcapsGlow Map View 75x55 Tactical HUD 1 Map Filters NONE Filters NONE Steam 1 RUN: 4fcc3a85-13f4-49ca-aeb3-f4bb60b140b2